fUSD/lending_fUSD_20240119
["ID","MTS","AMOUNT","RATE_DAILY","PERIOD"]
[312165825,1705674699140,-2408.12,0.00023835,2]
[312165826,1705674699150,-1113.26,0.00023835,2]
[312165827,1705674699160,-500.0,0.00023835,2]
[312165828,1705674699169,-1962.06,0.00023835,2]
[312165829,1705674699180,-573.79,0.00023835,2]
[312165830,1705674699190,-11423.78,0.00023835,2]
[312165831,1705674699201,-4066.04,0.00023835,2]
[312165832,1705674699212,-522.52,0.00023835,2]
[312165833,1705674699222,-2220.98,0.00023835,2]
[312165834,1705674699232,-847.61,0.00023835,2]
[312165835,1705674699242,-942.58,0.00023835,2]
[312165836,1705674699253,-6566.67,0.00023835,2]
[312165837,1705674699264,-934.08,0.00023835,2]
[312165838,1705674699275,-814.47,0.00023835,2]
[312165839,1705674699285,-800.9,0.00023835,2]
[312165840,1705674699296,-1493.53,0.00023835,2]
[312165841,1705674699306,-823.98,0.00023835,2]
[312165842,1705674699316,-500.0,0.00023835,2]
[312165843,1705674699326,-500.0,0.00023835,2]
[312165844,1705674699337,-509.76,0.00023835,2]
[312165845,1705674699348,-1278.96,0.00023835,2]
[312165846,1705674699357,-3770.64,0.00023835,2]
[312165847,1705674699368,-956.94,0.00023835,2]
[312165848,1705674699379,-1348.79,0.00023835,2]
[312165849,1705674699389,-1356.35,0.00023835,2]
[312165850,1705674699399,-2516.93,0.00023835,2]
[312165851,1705674699409,-773.29,0.00023835,2]
[312165852,1705674699419,-608.82,0.00023835,2]
[312165853,1705674699429,-500.0,0.00023835,2]
[312165854,1705674699439,-2842.24,0.00023835,2]
[312165855,1705674699449,-500.0,0.00023835,2]
[312165856,1705674699458,-602.48,0.00023835,2]
[312165857,1705674699468,-500.0,0.00023835,2]
[312165858,1705674699477,-2750.19,0.00023835,2]
[312165859,1705674699487,-624.79,0.00023835,2]
[312165860,1705674699497,-1084.04,0.00023835,2]
[312165861,1705674699507,-863.67,0.00023835,2]
[312165862,1705674699519,-977.84,0.00023835,2]
[312165863,1705674699529,-511.75,0.00023835,2]
[312165864,1705674699538,-1392.15,0.00023835,2]
[312165865,1705674699547,-816.57,0.00023835,2]
[312165866,1705674699557,-564.75,0.00023835,2]
[312165867,1705674699569,-1716.1,0.00023835,2]
[312165868,1705674699579,-1306.13,0.00023835,2]
[312165869,1705674699589,-1125.65,0.00023835,2]
[312165870,1705674699599,-1422.11,0.00023835,2]
[312165871,1705674699609,-1831.27,0.00023835,2]
[312165872,1705674699620,-500.0,0.00023835,2]
[312165873,1705674699631,-894.49,0.00023835,2]
[312165874,1705674699645,-717.76,0.00023835,2]
[312165875,1705674699655,-611.36,0.00023835,2]
[312165876,1705674699664,-1447.39,0.00023835,2]
[312165877,1705674699674,-2948.08,0.00023835,2]
[312165878,1705674699684,-717.83,0.00023835,2]
[312165879,1705674699694,-695.07,0.00023835,2]
[312165880,1705674699704,-754.58,0.00023835,2]
[312165881,1705674699714,-3021.97,0.00023835,2]
[312165882,1705674699724,-3427.8,0.00023835,2]
[312165883,1705674699734,-16488.48,0.00023835,2]
[312165884,1705674699744,-2131.71,0.00023835,2]
[312165885,1705674699755,-500.0,0.00023835,2]
[312165886,1705674699765,-1009.99,0.00023835,2]
[312165887,1705674699776,-956.0,0.00023835,2]
[312165888,1705674699786,-1506.86,0.00023835,2]
[312165889,1705674699796,-500.0,0.00023835,2]
[312165890,1705674699807,-1637.62,0.00023835,2]
[312165891,1705674699817,-1201.83,0.00023835,2]
[312165892,1705674699827,-637.98,0.00023835,2]
[312165893,1705674699839,-3998.36,0.00023835,2]
[312165894,1705674699850,-1400.83,0.00023835,2]
[312165895,1705674699860,-1599.66,0.00023835,2]
[312165896,1705674699869,-500.0,0.00023835,2]
[312165897,1705674699880,-1422.3,0.00023835,2]
[312165898,1705674699890,-17849.03,0.00023835,2]
[312165899,1705674699899,-924.53,0.00023835,2]
[312165900,1705674699909,-995.96,0.00023835,2]
[312165901,1705674699920,-3330.51,0.00023835,2]
[312165902,1705674699930,-905.92,0.00023835,2]
[312165903,1705674699940,-1401.15,0.00023835,2]
[312165904,1705674699950,-500.0,0.00023835,2]
[312165905,1705674699960,-500.0,0.00023835,2]
[312165906,1705674699969,-1383.55,0.00023835,2]
[312165907,1705674699979,-1506.65,0.00023835,2]
[312165908,1705674699990,-6741.56,0.00023835,2]
[312165909,1705674699999,-500.0,0.00023835,2]
[312165910,1705674700009,-1264.66,0.00023835,2]
[312165911,1705674700019,-500.0,0.00023835,2]
[312165912,1705674700028,-500.0,0.00023835,2]
[312165913,1705674700038,-604.37,0.00023835,2]
[312165914,1705674700048,-445.30300416,0.00023835,2]
[312165915,1705674700059,-1687.35,0.00023835,2]
[312165916,1705674700068,-516.56,0.00023835,2]
[312165917,1705674700079,-605.05,0.00023835,2]
[312165918,1705674700089,-1288.35,0.00023835,2]
[312165919,1705674700099,-500.0,0.00023835,2]
[312165920,1705674700109,-5391.31,0.00023835,2]
[312165921,1705674700119,-824.94,0.00023835,2]
[312165922,1705674700129,-500.0,0.00023835,2]
[312165923,1705674700139,-654.71,0.00023835,2]
[312165924,1705674700149,-1647.86,0.00023835,2]
[312165925,1705674700159,-1467.43,0.00023835,2]
[312165926,1705674700169,-500.0,0.00023835,2]
[312165927,1705674700179,-2497.65,0.00023835,2]
[312165928,1705674700189,-541.73,0.00023835,2]
[312165929,1705674700199,-1662.1,0.00023835,2]
[312165930,1705674700209,-827.16,0.00023835,2]
[312165931,1705674700218,-617.14,0.00023835,5]
[312165932,1705674700228,-798.92,0.00023835,2]
[312165933,1705674700237,-1554.52,0.00023835,2]
[312165934,1705674700247,-796.96,0.00023835,2]
[312165935,1705674700256,-1197.62,0.00023835,2]
[312165936,1705674700265,-538.86,0.00023835,2]
[312165937,1705674700274,-500.0,0.00023835,2]
[312165938,1705674700284,-1262.62,0.00023835,2]
[312165939,1705674700294,-1671.21,0.00023835,2]
[312165940,1705674700303,-500.0,0.00023835,2]
[312165941,1705674700313,-411.27250774,0.00023835,2]
[312165942,1705674700323,-500.0,0.00023835,2]
[312165943,1705674700333,-867.33,0.00023835,2]
[312165944,1705674700343,-1641.24,0.00023835,2]
[312165945,1705674700353,-1517.74577606,0.00023842,2]
[312165946,1705674700363,-150.0,0.00023866,2]
[312165947,1705674700372,-949.846,0.0002389,2]
[312165948,1705674700381,-2302.076,0.0002389,2]
[312165949,1705674700390,-3187.48,0.0002389,2]
[312165950,1705674700400,-3107.19,0.0002389,2]
[312165951,1705674700410,-1411.487,0.0002389,2]
[312165952,1705674700419,-150.0,0.0002389,2]
[312165953,1705674700428,-1029.0,0.0002389,2]
[312165954,1705674700438,-461.82,0.0002389,2]
[312165955,1705674700447,-946.0,0.0002389,2]
[312165956,1705674700456,-839.0,0.0002389,2]
[312165957,1705674700466,-424.956,0.0002389,2]
[312165958,1705674700475,-1250.0,0.0002389,2]
[312165959,1705674700485,-1233.0,0.0002389,2]
[312165960,1705674700494,-426.0,0.0002389,2]
[312165961,1705674700504,-1934.0,0.0002389,2]
[312165962,1705674700516,-277.794,0.0002389,2]
[312165963,1705674700525,-319.864,0.0002389,2]
[312165964,1705674700535,-508.704,0.0002389,2]
[312165965,1705674700544,-873.0,0.0002389,2]
[312165966,1705674700554,-153.201,0.0002389,2]
[312165967,1705674700563,-19709.0,0.0002389,2]
[312165968,1705674700573,-6241.838,0.0002389,2]
[312165969,1705674700582,-2274.0,0.0002389,2]
[312165970,1705674700592,-4172.0,0.0002389,2]
[312165971,1705674700601,-2920.338,0.0002389,2]
[312165972,1705674700610,-208.78322921,0.000239,2]
[312165973,1705674700620,-208.7832292,0.000239,2]
[312165974,1705674700630,-157.44,0.00023908,2]
[312165975,1705674700643,-500.0,0.00023915,2]
[312165976,1705674700653,-500.0,0.00023916,2]
[312165977,1705674700662,-500.0,0.00023916,2]
[312165978,1705674700671,-500.0,0.00023916,2]
[312165979,1705674700682,-500.0,0.00023916,2]
[312165980,1705674700691,-500.0,0.00023916,2]
[312165981,1705674700701,-500.0,0.00023916,2]
[312165982,1705674700711,-500.0,0.00023916,2]
[312165983,1705674700734,-500.0,0.00023916,2]
[312165984,1705674700744,-500.0,0.00023916,2]
[312165985,1705674700754,-500.0,0.00023916,2]
[312165986,1705674700764,-500.0,0.00023916,2]
[312165987,1705674700774,-500.0,0.00023916,2]
[312165988,1705674700784,-500.0,0.00023916,2]
[312165989,1705674700794,-500.0,0.00023916,2]
[312165990,1705674700804,-500.0,0.00023916,2]
[312165991,1705674700814,-500.0,0.00023916,2]
[312165992,1705674700823,-500.0,0.00023916,2]
[312165993,1705674700833,-500.0,0.00023916,2]
[312165994,1705674700842,-500.0,0.00023916,2]
[312165995,1705674700852,-500.0,0.00023916,2]
[312165996,1705674700862,-500.0,0.00023916,2]
[312165997,1705674700873,-500.0,0.00023916,2]
[312165998,1705674700882,-500.0,0.00023916,2]
[312165999,1705674700893,-500.0,0.00023916,2]
[312166000,1705674700902,-500.0,0.00023916,2]
[312166001,1705674700912,-500.0,0.00023916,2]
[312166002,1705674700923,-500.0,0.00023916,2]
[312166003,1705674700933,-500.0,0.00023916,2]
[312166004,1705674700942,-500.0,0.00023916,2]
[312166005,1705674700951,-500.0,0.00023916,2]
[312166006,1705674700961,-500.0,0.00023916,2]
[312166007,1705674700970,-500.0,0.00023916,2]
[312166008,1705674700979,-500.0,0.00023916,2]
[312166009,1705674700988,-500.0,0.00023916,2]
[312166010,1705674700998,-500.0,0.00023916,2]
[312166011,1705674701007,-500.0,0.00023916,2]
[312166012,1705674701017,-500.0,0.00023916,2]
[312166013,1705674701027,-500.0,0.00023916,2]
[312166014,1705674701036,-500.0,0.00023916,2]
[312166015,1705674701046,-500.0,0.00023916,2]
[312166016,1705674701055,-500.0,0.00023916,2]
[312166017,1705674701065,-500.0,0.00023916,2]
[312166018,1705674701075,-500.0,0.00023916,2]
[312166019,1705674701085,-500.0,0.00023916,2]
[312166020,1705674701095,-500.0,0.00023916,2]
[312166021,1705674701105,-500.0,0.00023916,2]
[312166022,1705674701114,-500.0,0.00023916,2]
[312166023,1705674701124,-500.0,0.00023916,2]
[312166024,1705674701134,-500.0,0.00023916,2]
[312166025,1705674701143,-500.0,0.00023916,2]
[312166026,1705674701153,-500.0,0.00023916,2]
[312166027,1705674701163,-500.0,0.00023916,2]
[312166028,1705674701174,-500.0,0.00023916,2]
[312166029,1705674701184,-500.0,0.00023916,2]
[312166030,1705674701194,-500.0,0.00023916,2]
[312166031,1705674701204,-500.0,0.00023916,2]
[312166032,1705674701213,-500.0,0.00023916,2]
[312166033,1705674701223,-500.0,0.00023916,2]
[312166034,1705674701233,-500.0,0.00023916,2]
[312166035,1705674701243,-500.0,0.00023916,2]
[312166036,1705674701253,-500.0,0.00023916,2]
[312166037,1705674701263,-500.0,0.00023916,2]
[312166038,1705674701273,-500.0,0.00023916,2]
[312166039,1705674701283,-500.0,0.00023916,2]
[312166040,1705674701293,-500.0,0.00023916,2]
[312166041,1705674701303,-500.0,0.00023916,2]
[312166042,1705674701313,-500.0,0.00023916,2]
[312166043,1705674701322,-500.0,0.00023916,2]
[312166044,1705674701331,-500.0,0.00023916,2]
[312166045,1705674701341,-500.0,0.00023916,2]
[312166046,1705674701350,-500.0,0.00023916,2]
[312166047,1705674701359,-500.0,0.00023916,2]
[312166048,1705674701369,-500.0,0.00023916,2]
[312166049,1705674701379,-500.0,0.00023916,2]
[312166050,1705674701563,-500.0,0.00023916,2]
[312166051,1705674701574,-500.0,0.00023916,2]
[312166052,1705674701584,-500.0,0.00023916,2]
[312166053,1705674701594,-500.0,0.00023916,2]
[312166054,1705674701605,-500.0,0.00023916,2]
[312166055,1705674701615,-335.29,0.00023916,2]
[312166056,1705674701625,-500.0,0.00023916,2]
[312166057,1705674701635,-500.0,0.00023916,2]
[312166058,1705674701646,-500.0,0.00023916,2]
[312166059,1705674701659,-500.0,0.00023916,2]
[312166060,1705674701669,-1551.36,0.00023923,2]
[312166061,1705674701678,-151.39793632,0.00023982,2]
[312166062,1705674701689,-1500.0,0.00023988,2]
[312166063,1705674701700,-10000.0,0.00023999,2]
[312166064,1705674701709,-201.16205573,0.00024,2]
[312166065,1705674701719,-431.59040182,0.00024,2]
[312166066,1705674701729,-600.0,0.00024,3]
[312166067,1705674701739,-155.2852582,0.00024,2]
[312166068,1705674701749,-250.0,0.00024,2]
[312166069,1705674701758,-500.0,0.00024008,2]
[312166070,1705674701769,-18613.64350954,0.00024009,2]
[312166071,1705674701780,-357.3197546,0.00024009,2]
[312166072,1705674701790,-150.0,0.00024027,2]
[312166073,1705674701800,-799.55,0.00024027,2]
[312166074,1705674701810,-150.0,0.00024027,2]
[312166075,1705674701820,-836.82,0.00024027,2]
[312166076,1705674701829,-150.0,0.00024027,2]
[312166077,1705674701840,-314.65,0.00024027,2]
[312166078,1705674701850,-588.78,0.00024027,2]
[312166079,1705674701860,-1356.59,0.00024046,2]
[312166080,1705674701870,-1500.0,0.00024051,2]
[312166081,1705674701880,-150.0,0.00024072,2]
[312166082,1705674701891,-500.0,0.00024072,2]
[312166083,1705674701901,-250.0,0.000241,2]
[312166084,1705674701911,-174.009405,0.000241,2]
[312166085,1705674701922,-1500.0,0.000241,2]
[312166086,1705674701932,-500.0,0.000241,2]
[312166087,1705674701942,-7669.6460839,0.00024103,2]
[312166088,1705674701952,-4143.7868368,0.00024106,2]
[312166089,1705674701961,-1267.7291288,0.00024106,2]
[312166090,1705674701971,-602.4251557,0.00024106,2]
[312166091,1705674701981,-150.0,0.00024107,2]
[312166092,1705674701991,-150.0,0.00024108,2]
[312166093,1705674702001,-500.0,0.00024109,2]
[312166094,1705674702012,-707.27,0.00024109,2]
[312166095,1705674702022,-500.0,0.00024109,2]
[312166096,1705674702032,-902.43,0.00024109,2]
[312166097,1705674702042,-500.0,0.00024109,2]
[312166098,1705674702052,-500.0,0.00024109,2]
[312166099,1705674702062,-512.07,0.00024109,2]
[312166100,1705674702071,-543.02,0.00024109,2]
[312166101,1705674702081,-500.0,0.00024109,2]
[312166102,1705674702091,-785.51,0.00024109,2]
[312166103,1705674702100,-500.0,0.00024109,2]
[312166104,1705674702109,-500.0,0.00024109,2]
[312166105,1705674702119,-500.0,0.00024109,2]
[312166106,1705674702128,-500.0,0.00024109,2]
[312166107,1705674702138,-500.0,0.00024109,2]
[312166108,1705674702147,-521.03,0.00024109,2]
[312166109,1705674702157,-500.0,0.00024109,2]
[312166110,1705674702166,-500.0,0.00024109,2]
[312166111,1705674702176,-500.0,0.00024109,2]
[312166112,1705674702185,-571.67,0.00024109,2]
[312166113,1705674702195,-500.0,0.00024109,2]
[312166114,1705674702206,-500.0,0.00024109,2]
[312166115,1705674702216,-500.0,0.00024109,2]
[312166116,1705674702225,-500.0,0.00024109,2]
[312166117,1705674702234,-500.0,0.00024109,2]
[312166118,1705674702244,-528.35,0.00024109,2]
[312166119,1705674702254,-500.0,0.00024109,2]
[312166120,1705674702264,-1047.08252589,0.00024109,10]
[312166121,1705674702274,-500.0,0.00024109,2]
[312166122,1705674702283,-500.0,0.00024109,2]
[312166123,1705674702292,-500.0,0.00024109,2]
[312166124,1705674702302,-500.0,0.00024109,2]
[312166125,1705674702312,-500.0,0.00024109,2]
[312166126,1705674702321,-500.0,0.00024109,2]
[312166127,1705674702331,-500.0,0.00024109,2]
[312166128,1705674702341,-297.73764485,0.00024109,2]
[312166129,1705674704682,-1892.01114157,0.00019264,2]
[312166130,1705674704697,-345.85,0.00019264,2]
[312166131,1705674704721,-278.86432281,0.00019264,2]
[312166132,1705674704733,-159.04770254,0.00021816,2]
[312166133,1705674704744,-572.16,0.00021917,2]
[312166134,1705674704755,-500.0,0.00021917,2]
[312166135,1705674704767,-5229.93,0.00021917,2]
[312166136,1705674704777,-500.0,0.00021917,2]
[312166137,1705674704787,-500.0,0.00021917,2]
[312166138,1705674704798,-653.23,0.00022191,2]
[312166139,1705674704808,-572.16,0.00022191,2]
[312166140,1705674704818,-500.0,0.00022191,2]
[312166141,1705674704828,-5229.93,0.00022191,2]
[312166142,1705674704839,-500.0,0.00022191,2]
[312166143,1705674704850,-500.0,0.00022465,2]
[312166144,1705674704860,-663.45,0.00022465,2]
[312166145,1705674704870,-653.23,0.00022465,2]
[312166146,1705674704880,-572.16,0.00022465,2]
[312166147,1705674704890,-500.0,0.00022465,2]
[312166148,1705674704900,-5229.93,0.00022465,2]
[312166149,1705674704910,-1040.42,0.00022739,2]
[312166150,1705674704920,-500.0,0.00022739,2]
[312166151,1705674704931,-663.45,0.00022739,2]
[312166152,1705674704941,-572.16,0.00022739,2]
[312166153,1705674704952,-653.23,0.00022739,2]
[312166154,1705674704962,-500.0,0.00022739,2]
[312166155,1705674704972,-5229.93,0.00022739,2]
[312166156,1705674704982,-561.95,0.00023013,2]
[312166157,1705674704992,-1040.42,0.00023013,2]
[312166158,1705674705002,-500.0,0.00023013,2]
[312166159,1705674705015,-663.45,0.00023013,2]
[312166160,1705674705026,-572.16,0.00023013,2]
[312166161,1705674705036,-653.23,0.00023013,2]
[312166162,1705674705047,-500.0,0.00023013,2]
[312166163,1705674705058,-5229.93,0.00023013,2]
[312166164,1705674705071,-2559.24489896,0.00023287,2]
[312166165,1705674705830,-296.11100459,0.00019263,2]
[312166166,1705674705840,-58.26616223,0.00019263,2]
[312166167,1705674705884,-252.75169948,0.00019263,2]
[312166168,1705674705894,-2317.7028402,0.00019263,2]
[312166169,1705674705906,-734.42363703,0.00019263,2]
[312166170,1705674708509,150.0,0.00017405,2]
[312166171,1705674708534,150.0,0.00017405,2]
[312166172,1705674708556,180.03708777,0.00017405,2]
[312166175,1705674986988,422.96,0.00018478,2]
[312166176,1705675430424,401.81,0.00018015,2]
[312166184,1705675689432,-160.7048052,0.00019043,2]
[312166185,1705675689456,-364.16757287,0.00019044,2]
[312166186,1705675689479,-155.05086073,0.00019161,2]
[312166187,1705675689502,-150.0,0.00019233,2]
[312166188,1705675689523,-2549.72248654,0.00019261,2]
[312166189,1705675689549,-185.27130486,0.00019262,2]
[312166190,1705675689571,-530.71332542,0.00019262,2]
[312166191,1705675689593,-4919.62267017,0.00019263,2]
[312166192,1705675689618,-165.02380166,0.00019263,2]
[312166193,1705675689639,-211.59647234,0.00019263,2]
[312166194,1705675691106,1041.52724477,0.00019043,2]
[312166195,1705675712130,32566.59945544,0.00019044,3]
[312166196,1705675732529,686477.21460874,3.479e-05,3]
[312166197,1705675732554,709642.91798884,3.479e-05,3]
[312166211,1705675831491,-709.57283364,0.0001952,2]
[312166213,1705675832549,-1454.97093426,0.0001952,2]
[312166214,1705675832564,-544.99143205,0.0001952,2]
[312166215,1705675832573,-1033.0,0.0001952,2]
[312166216,1705675832583,-4221.73636686,0.0001952,2]
[312166217,1705675832596,-578.10578071,0.0001952,2]
[312166218,1705675832608,-5351.73120186,0.0001952,2]
[312166219,1705675832686,-284.4205441,0.0001952,2]
[312166220,1705675832698,-10516.30938908,0.0001952,2]
[312166221,1705675832710,-267.5,0.0001952,2]
[312166222,1705675832724,-1430.67315782,0.0001952,2]
[312166223,1705675832743,-720.5078931,0.0001952,2]
[312166224,1705675832756,-5281.73352404,0.0001952,2]
[312166225,1705675832879,-257.69497186,0.0001952,2]
[312166264,1705675833366,-395.87157265,0.0001952,2]
[312166266,1705675833379,-31955.53559792,0.0001952,2]
[312166268,1705675833389,-155.05086068,0.00019527,2]
[312166270,1705675833398,-390.62,0.00019527,2]
[312166272,1705675833408,-26575.7557714,0.00019529,2]
[312166274,1705675833422,-181.08,0.00019567,2]
[312166276,1705675833432,-640.0,0.00019717,2]
[312166278,1705675833442,-15626.36,0.00019735,2]
[312166280,1705675833451,-23900.0,0.00019765,2]
[312166282,1705675833460,-434.68,0.00019779,2]
[312166284,1705675833470,-200.0,0.00019863,2]
[312166286,1705675833479,-500.0,0.00019874,2]
[312166288,1705675833489,-155.05086068,0.00019893,2]
[312166290,1705675833498,-360.0,0.00019912,2]
[312166292,1705675833507,-1167.0,0.00019912,2]
[312166294,1705675833517,-499.99,0.00019912,2]
[312166296,1705675833526,-157.51,0.00019922,2]
[312166298,1705675833536,-160.29,0.00019942,2]
[312166300,1705675833545,-1377.3390751,0.0002,2]
[312166302,1705675833555,-157.51,0.00020037,2]
[312166304,1705675833564,-157.44,0.0002009,2]
[312166306,1705675833573,-157.51,0.00020152,2]
[312166308,1705675833583,-363.60275474,0.00020238,2]
[312166310,1705675833592,-1010.65785523,0.00020238,2]
[312166312,1705675833603,-162.34,0.00020239,2]
[312166314,1705675833613,-155.05086068,0.00020259,2]
[312166316,1705675833624,-157.51,0.00020268,2]
[312166319,1705675833634,-401.81,0.00020279,2]
[312166320,1705675833643,-157.51,0.00020383,2]
[312166323,1705675833653,-157.51,0.00020499,2]
[312166325,1705675833664,-269.92500188,0.00020509,2]
[312166327,1705675833674,-1147.98,0.0002051,2]
[312166329,1705675833684,-165.54,0.0002051,2]
[312166331,1705675833694,-2000.0,0.00020548,2]
[312166333,1705675833704,-157.51,0.00020614,2]
[312166335,1705675833714,-155.05086068,0.00020626,2]
[312166336,1705675833724,-157.51,0.00020729,2]
[312166338,1705675833734,-157.51,0.00020845,2]
[312166341,1705675833745,-1500.0,0.00020898,2]
[312166343,1705675833754,-162.42820059,0.00020917,2]
[312166345,1705675833764,-157.51,0.0002096,2]
[312166347,1705675833775,-155.05086068,0.00020992,2]
[312166349,1705675833785,-4630.0,0.00021052,2]
[312166351,1705675833795,-1500.0,0.00021296,2]
[312166353,1705675833805,-182.0,0.00021354,2]
[312166355,1705675833815,-155.05086068,0.00021358,2]
[312166357,1705675833825,-1500.0,0.000214,2]
[312166359,1705675833836,-1147.98,0.00021488,2]
[312166361,1705675833846,-2206.19536166,0.00021564,2]
[312166363,1705675833856,-207.0,0.00021631,2]
[312166365,1705675833865,-542.63,0.00021644,2]
[312166367,1705675833875,-154.86,0.0002168,2]
[312166369,1705675833886,-425.400001,0.000217,2]
[312166371,1705675833896,-1887.54409832,0.00021716,2]
[312166373,1705675833906,-155.05086068,0.00021724,2]
[312166374,1705675833918,-150.0,0.00021795,2]
[312166375,1705675833929,-500.0,0.00021815,2]
[312166376,1705675833939,-82109.45918628,0.00021816,2]
[312166377,1705675833953,-58012.21262542,0.00021816,2]
[312166378,1705675833967,-530.60118811,0.00021816,2]
[312166379,1705675833980,-529.8845438,0.00021816,2]
[312166380,1705675833993,-695.69402603,0.00021816,2]
[312166381,1705675834023,-258.77880138,0.00021816,2]
[312166382,1705675834036,-376.84285948,0.00021816,2]
[312166383,1705675834049,-5346.98508133,0.00021816,2]
[312166384,1705675834061,-5812.70538814,0.00021816,2]
[312166385,1705675834074,-790.90110218,0.00021816,2]
[312166386,1705675834091,-299.408144,0.00021816,2]
[312166397,1705675838441,-7176.2394,0.00021816,2]
[312166398,1705675838454,-23197.48318635,0.00021816,2]
[312166399,1705675838465,-1822.64665156,0.00021816,2]
[312166400,1705675838477,-3999.85962455,0.00021816,2]
[312166401,1705675838584,-8598.94709139,0.00021816,2]
[312166402,1705675838594,-2836.9764,0.00021816,2]
[312166403,1705675838603,-1000.0,0.00021817,2]
[312166404,1705675838612,-175.74926153,0.00021817,2]
[312166405,1705675838622,-3811.86646049,0.00021817,2]
[312166406,1705675838631,-355.00015144,0.00021817,2]
[312166407,1705675838641,-3612.89756936,0.00021817,2]
[312166408,1705675838651,-1500.0,0.00021818,2]
[312166409,1705675838661,-1500.0,0.00021835,2]
[312166410,1705675838672,-150.0,0.0002187,2]
[312166411,1705675838681,-750.0,0.000219,2]
[312166412,1705675838691,-1884.84412128,0.000219,2]
[312166413,1705675838700,-173.97851114,0.000219,2]
[312166414,1705675838710,-173.9785111,0.000219,2]
[312166415,1705675838720,-173.9785111,0.000219,2]
[312166416,1705675838730,-173.9785111,0.000219,2]
[312166417,1705675838740,-228.88,0.000219,2]
[312166418,1705675838749,-250.0,0.000219,2]
[312166419,1705675838759,-514.88261768,0.00021905,2]
[312166420,1705675838769,-150.0,0.00021911,2]
[312166421,1705675838779,-257.14587605,0.00021915,2]
[312166422,1705675838789,-2987.94635023,0.00021915,2]
[312166423,1705675838799,-299.90633046,0.00021916,2]
[312166424,1705675838808,-2694.65615469,0.00021916,2]
[312166426,1705675838818,-155.4796376,0.00021916,2]
[312166427,1705675838828,-2221.48696359,0.00021916,2]
[312166428,1705675838838,-24664.1998735,0.00021916,2]
[312166429,1705675838850,-54263.66119503,0.00021916,2]
[312166430,1705675838862,-73449.55183605,0.00021916,2]
[312166431,1705675838874,-182389.60415132,0.00021916,2]
[312166433,1705675838886,-85794.77637302,0.00021916,2]
[312166435,1705675838899,-39652.62208967,0.00021916,2]
[312166440,1705675838943,-431.95013453,0.00021916,2]
[312166444,1705675838972,-29832.77505244,0.00021916,2]
[312166447,1705675838984,-509208.45841455,0.00021916,2]
[312166449,1705675838994,-734.53,0.00021917,2]
[312166451,1705675839004,-500.0,0.00021917,2]
[312166453,1705675839014,-500.0,0.00021917,2]
[312166455,1705675839023,-500.0,0.00021917,2]
[312166457,1705675839032,-500.0,0.00021917,2]
[312166459,1705675839041,-500.0,0.00021917,2]
[312166461,1705675839051,-444.24346966,0.00021917,2]
[312166463,1705675839061,-500.0,0.00021917,2]
[312166465,1705675839070,-500.0,0.00021917,2]
[312166467,1705675839080,-500.0,0.00021917,2]
[312166469,1705675839089,-648.00657631,0.00021917,2]
[312166471,1705675839098,-500.0,0.00021917,2]
[312166473,1705675839108,-500.0,0.00021917,2]
[312166475,1705675839117,-500.0,0.00021917,2]
[312166477,1705675839127,-500.0,0.00021917,2]